Cogmind - Beta 14 @@@ ROGUE MODE // 2024.10.12 @ 03:18:36 Player: MarKhan Result: Destroyed by H-88 Terminator with KE Penetrator Performance ------------- Evolutions (8) 4000 Regions Visited (15) 3000 Robots Destroyed (179) 895 Value Destroyed (7804) 7804 Prototype IDs (41) 820 Alien Tech Used (2) 400 Bonus (1420) 1420 TOTAL SCORE: 18339 Bonus ------- High Alert Combat Kills 958 Follower Combat Kills 66 Scanned by Researcher 500 Friendly Fire -104 Cogmind --------- Core Integrity 0/1450 Matter 283/300 Energy 34/100 System Corruption 2% Temperature Cool (0) Movement Core (50) Location -2/Research Parts ------- > --- POWER (2) -------- (None) > --- PROPULSION (6) --- (None) > --- UTILITY (11) ----- (None) > --- WEAPON (4) ------- (None) > --- INVENTORY (5) ---- Energy Well (350) Improved Matter Compressor (300) Heavy Regenerative Plating HERF Cannon Peak State ------------ > --- POWER ------------ Cooled Antimatter Reactor Light Quantum Reactor > --- PROPULSION ------- Medium Treads Medium Treads Armored Medium Treads Advanced Medium Treads Wheel Wheel > --- UTILITY ---------- Advanced Heat Sink Advanced Heat Sink High-capacity Storage Unit Long-range Sensor Array Heavy Regenerative Plating Heavy Regenerative Plating SHELL Armor > --- WEAPON ----------- Enhanced Nova Cannon Cooled Nova Cannon Null Cannon Power Sword > --- INVENTORY -------- Light Antimatter Reactor Particle Reactor Micro Antimatter Reactor Light Quantum Reactor Light Quantum Reactor Wheel Advanced Heat Sink Energy Well Energy Well Matter Compressor Improved Matter Compressor Experimental Hardlight Generator Long-range Tractor Beam Advanced Recalibrator Plasma Rifle Dispersion Rifle Compact HERF Cannon Heavy Proton Missile Launcher Advanced Remote Datajack Force Lance [Rating: 174] Favorites ----------- Power Heavy Ion Engine Engine Heavy Ion Engine Power Core Micro Fission Core Reactor Light Antimatter Reactor Propulsion Light Treads Treads Light Treads Wheel Wheel Hover Unit Combat Antigrav System Flight Unit Electron Diverter Utility High-capacity Storage Unit Device Improved Terrain Scanner Storage High-capacity Storage Unit Processor Improved Targeting Computer Hackware System Shield Protection Heavy Regenerative Plating Weapon Enhanced Autogun Energy Gun Improved EM Shotgun Energy Cannon Cooled Nova Cannon Ballistic Gun Enhanced Autogun Ballistic Cannon Light Cannon Launcher Grenade Launcher Special Weapon Advanced Remote Datajack Impact Weapon Impact Mace Slashing Weapon Power Sword Piercing Weapon Force Lance Build | -11 -10 -9 -9 -8 -7 -6 -5 -4 -4 -4 -4 -3 -3 -3 -2 ------- Run | Yrd Mat Mat Min Mat Fac Fac Fac Fac Upp Upp Zhi Pro Res Tes Res Slots Evolved 16 | . . 2 . 2 2 2 2 2 . . . . 2 . 2 Power 1 | . . . . . . . 1 . . . . . . . . Propulsion 4 | . . 1 . . 1 1 . 1 . . . . . . . Utility 9 | . . 1 . 1 1 1 1 . . . . . 2 . 2 Weapon 2 | . . . . 1 . . . 1 . . . . . . . Parts Attached 380 | 8 40 43 1 26 6 7 9 6 10 13 10 31 45 88 37 Power 42 | 1 3 2 . 2 . . 1 1 1 1 2 2 5 14 7 Engine 11 | 1 3 2 . 2 . . 1 . . 1 . . 1 . . Core 3 | . . . . . . . . . . . . 1 . 2 . Reactor 28 | . . . . . . . . 1 1 . 2 1 4 12 7 Propulsion 75 | 2 7 7 1 1 1 1 1 3 1 3 . 5 20 18 4 Treads 40 | 2 7 7 1 1 1 1 1 3 1 3 . 5 2 5 . Leg . | . . . . . . . . . . . . . . . . Wheel 29 | . . . . . . . . . . . . . 13 12 4 Hover 5 | . . . . . . . . . . . . . 5 . . Flight 1 | . . . . . . . . . . . . . . 1 . Utility 165 | 3 16 26 . 14 5 6 5 1 4 7 6 13 14 29 16 Device 105 | 2 9 22 . 10 3 4 3 1 3 6 3 10 6 13 10 Storage 14 | 1 1 1 . . . . . . . . 2 . 3 1 5 Processor 11 | . . 1 . . . 1 1 . . 1 . 2 4 . 1 Hackware 1 | . . . . 1 . . . . . . . . . . . Protection 34 | . 6 2 . 3 2 1 1 . 1 . 1 1 1 15 . Artifact . | . . . . . . . . . . . . . . . . Weapon 98 | 2 14 8 . 9 . . 2 1 4 2 2 11 6 27 10 Energy Gun 30 | 2 6 3 . 3 . . . . . . 1 2 3 8 2 Energy Cannon 18 | . . . . . . . . . . . . 3 . 11 4 Ballistic Gun 24 | . 2 4 . 5 . . 2 1 2 2 1 4 1 . . Ballistic Cannon 8 | . 4 . . . . . . . . . . 1 . 3 . Launcher 8 | . 2 1 . . . . . . 2 . . 1 . 1 1 Special Weapon 2 | . . . . . . . . . . . . . . 1 1 Impact Weapon 1 | . . . . 1 . . . . . . . . . . . Slashing Weapon 1 | . . . . . . . . . . . . . . 1 . Piercing Weapon 6 | . . . . . . . . . . . . . 2 2 2 Special Melee Weapon . | . . . . . . . . . . . . . . . . Unidentified Prototypes 23 | . 1 2 . 3 . . . . . . 6 . . 11 . Corrupted Parts 1 | . . . 1 . . . . . . . . . . . . System Corruption 3 | . . . 3 . . . . . . . . . . . . Parts Lost 108 | . . 1 . . . . 1 . 3 3 . 29 6 34 31 Power 14 | . . . . . . . . . . . . 4 . 4 6 Propulsion 37 | . . . . . . . . . . 2 . 9 4 14 8 Utility 26 | . . . . . . . 1 . 2 1 . 4 2 7 9 Weapon 31 | . . 1 . . . . . . 1 . . 12 . 9 8 Highest Loss Streak 22 | . . 1 . . . . 1 . 3 3 . 17 6 12 22 To Critical Strikes . | . . . . . . . . . . . . . . . . Average Slot Usage (%) 91 | . 99 99 100 99 99 99 100 100 99 99 98 88 83 72 60 Engine 6 | . 13 10 11 9 7 6 11 7 5 5 5 . . . . Reactor 3 | . . . . . . . . 2 5 5 4 7 6 8 6 Treads 22 | . 27 33 33 27 30 33 29 31 31 30 31 24 . 4 11 Wheel 4 | . . . . . . . . . . . . . 19 14 5 Device 12 | . 11 17 11 15 21 19 12 10 14 18 19 13 10 3 9 Storage 7 | . 14 11 11 9 7 6 5 5 5 5 5 4 3 4 3 Processor 8 | . . 3 11 9 7 12 15 15 10 10 10 16 20 6 . Protection 3 | . 2 . . 1 1 . 5 5 5 1 . . 1 10 9 Energy Gun 5 | . 14 13 . 3 . . . . . . 1 . 5 3 . Energy Cannon 1 | . . . . . . . . . . . . . . 4 7 Ballistic Gun 11 | . 9 8 22 23 23 20 17 21 20 21 19 17 2 . . Piercing Weapon 1 | . . . . . . . . . . . . . 6 4 1 Peak Build Rating 174 | 9 12 21 19 32 37 41 54 72 79 88 90 93 119 160 174 Average Rating 63 | 6 8 18 19 28 35 38 47 65 77 84 86 77 84 126 128 On Entrance 52 | . 7 12 19 19 31 37 40 54 72 79 87 89 22 105 160 Naked Turns 77 | . . . . . . . . . . . . . . . 77 Heaviest Build 191 | 15 34 57 55 63 67 67 81 89 90 90 83 96 114 181 191 Greatest Support 150 | 40 40 60 60 62 82 102 105 132 139 150 150 148 78 113 113 Greatest Overweight (x) 36 | . 1 . . 1 . . . . . . . 2 3 36 23 Average Overweight (x) . | . . . . . . . . . . . . . . 4 . Largest Inventory Capacity 20 | 8 15 20 20 20 20 20 20 20 20 20 20 20 20 20 20 Average Capacity 17 | 7 12 17 20 20 20 20 20 20 20 20 20 19 15 20 17 Most Carried 20 | 7 15 20 20 20 20 20 20 20 20 20 20 20 20 20 20 Average Carried 16 | 4 12 17 20 19 19 19 18 19 18 19 19 17 14 18 16 Final Capacity 20 | 8 15 20 20 20 20 20 20 20 20 20 20 5 20 20 5 Final Carried 20 | 7 15 20 20 20 20 20 20 20 20 20 20 5 20 20 5 Class Distribution -------------------- 25% | Mutant 20% | Scavenger-Mutant 19% | Scavenger-Skirmisher 12% | Scavenger-Gunner 12% | Scavenger-Tank 5% | Scavenger-Assassin 3% | Gunner Dominant Class ---------------- Mutant | -10/Materials Scavenger-Mutant | -9/Materials Mutant | -9/Mines Gunner | -8/Materials Scavenger-Gunner | -7/Factory Scavenger-Skirmisher | -6/Factory Scavenger-Gunner | -5/Factory Scavenger-Gunner | -4/Factory Scavenger-Tank | -4/Upper Caves Scavenger-Skirmisher | -4/Upper Caves Scavenger-Skirmisher | -4/Zhirov Scavenger-Skirmisher | -3/Proximity Caves Scavenger-Assassin | -3/Research Scavenger-Mutant | -3/Testing Scavenger-Skirmisher | -2/Research Resources | -11 -10 -9 -9 -8 -7 -6 -5 -4 -4 -4 -4 -3 -3 -3 -2 ----------- Run | Yrd Mat Mat Min Mat Fac Fac Fac Fac Upp Upp Zhi Pro Res Tes Res Matter Collected 7930 | 304 655 584 . 711 301 60 133 93 422 501 491 934 864 1599 278 Remotely 2163 | . 125 129 . 352 301 10 55 . 95 . . 401 . 620 75 Salvage Created 9616 | 161 631 863 . 550 . . 96 110 170 413 356 486 1204 3595 981 Parts 438 | 10 42 53 . 20 . . 4 7 . 16 1 25 59 165 36 Haulers Intercepted 6 | . 2 . . 1 . . . . . . . . 2 1 . Recyclers Shooed 7 | 1 . 1 . . . . 1 . . . . . 2 . 2 Parts Field Recycled . | . . . . . . . . . . . . . . . . Retrieved Matter . | . . . . . . . . . . . . . . . . Parts Self-Destructed 38 | . . . . . . . . . 1 14 1 22 . . . Prevented 2 | . . . . . . . . . 1 . . 1 . . . Kills | -11 -10 -9 -9 -8 -7 -6 -5 -4 -4 -4 -4 -3 -3 -3 -2 ------- Run | Yrd Mat Mat Min Mat Fac Fac Fac Fac Upp Upp Zhi Pro Res Tes Res Combat Hostiles Destroyed 123 | . 8 18 . 7 . . 1 2 7 5 . 10 7 48 10 Melee 9 | . . . . . . . . . . . . . 4 4 1 Guns 50 | . 4 14 . 7 . . 1 2 4 5 . 7 3 3 . Cannons 39 | . 1 . . . . . . . . . . 2 . 33 3 AOE 15 | . 3 4 . . . . . . 3 . . 1 . 2 2 Classes Destroyed 17 | 3 5 1 . . . . 1 . 2 1 . 3 . 1 . Worker 22 | 2 1 3 . 2 . . 1 . . . . . 2 7 4 Builder 7 | . 1 . . . . . . . . . . . 1 4 1 Tunneler 4 | 2 . . . . . . . . . . . . 2 . . Hauler 6 | . 2 . . 1 . . . . . . . . 2 1 . Recycler 10 | 1 3 1 . 1 . . . . . . . . 2 1 1 Drone 2 | . . . . . . . . . . . . 2 . . . Watcher 10 | . 3 2 . 1 . . . . . . . . 2 1 1 Swarmer 13 | . 3 6 . . . . . 1 2 . . 1 . . . Grunt 61 | . 5 7 . 6 . . . . 2 2 . 4 3 29 3 Brawler 1 | . . . . . . . . . 1 . . . . . . Duelist 3 | . . . . . . . . . 1 . . . . 2 . Researcher 3 | . . . . . . . . . . . . . . 3 . Sentry 9 | . . 5 . 1 . . . . 1 1 . . 1 . . Hunter 19 | . . . . . . . . . . . . 2 . 10 7 Programmer 12 | . . . . . . . . . . 2 . . 3 7 . Heavy 2 | . . . . . . . 1 1 . . . . . . . Behemoth 1 | . . . . . . . . . . . . 1 . . . Best Kill Streak 8 | 2 4 3 . 5 . . 1 1 7 5 . 4 4 8 7 Combat Bots Only 7 | . 3 3 . 5 . . 1 1 7 5 . 4 2 7 4 Max Kills in Single Turn 4 | 1 2 3 . 1 . . 1 1 2 1 . 1 1 3 4 Gunslinging . | . . . . . . . . . . . . . . . . Exploded 3 | . 2 3 . . . . . . 2 . . 1 . 1 1 Melee 1 | . . . . . . . . . . . . . 1 1 1 Uniques/NPCs Destroyed . | . . . . . . . . . . . . . . . . Combat | -11 -10 -9 -9 -8 -7 -6 -5 -4 -4 -4 -4 -3 -3 -3 -2 -------- Run | Yrd Mat Mat Min Mat Fac Fac Fac Fac Upp Upp Zhi Pro Res Tes Res Hostile Shots Fired 1928 | . 40 67 . 25 7 12 8 8 68 59 . 276 60 794 504 Missed 565 | . 12 22 . 7 2 4 4 4 23 12 . 86 13 224 152 Damage Taken 26751 | . 391 616 . 295 76 115 79 62 919 754 . 3788 1034 10596 8026 Core 3215 | . . 65 . 34 . . 28 . 64 36 . 720 72 744 1452 Absorbed by Shields 1225 | . . . . . 4 42 28 23 292 274 . 132 . . 430 Redirected to Shielding 150 | . . . . . . . . . . . . 150 . . . Regen/Repaired (Parts) 7707 | . 236 121 . . . . . . . . . . . 6359 991 Core Remaining (%) 81 | 100 100 . 83 93 100 100 97 . . . . 21 . 37 . Volleys Fired 504 | 18 57 48 . 38 . . 4 7 10 15 33 46 24 163 41 Largest 4 | 1 2 2 . 3 . . 3 4 4 4 1 4 2 3 3 Hottest 300 | 50 90 90 . 103 . . 83 116 132 116 55 244 169 245 300 Shots Fired 1003 | 18 104 87 . 100 . . 10 28 36 57 34 133 42 266 88 Gun 645 | 18 73 83 . 100 . . 10 28 25 57 34 119 42 41 15 Cannon 331 | . 26 . . . . . . . . . . 13 . 224 68 Launcher 25 | . 5 4 . . . . . . 11 . . 1 . . 4 Special 2 | . . . . . . . . . . . . . . 1 1 Kinetic 515 | . 54 35 . 87 . . 10 28 25 57 1 109 23 86 . Thermal 263 | 18 1 . . 13 . . . . . . 33 19 16 88 75 Explosive 21 | . 5 4 . . . . . . 11 . . 1 . . . Electromagnetic 202 | . 44 48 . . . . . . . . . 4 3 91 12 Robot Hit Streak 27 | 8 12 10 . 22 . . 6 10 8 16 27 11 14 11 7 Robot Miss Streak 9 | 2 4 4 . 3 . . 1 2 2 2 2 5 2 9 7 Penetration Max 2 | . . . . . . . . . . 1 . . 2 1 . Secondary Targets 6 | . . 1 . 3 . . . . . 1 . 1 . . . Max Gunslinging Chain 1 | . . 1 . 1 . . . . . 1 . 1 . . . Shots Hit Robots 684 | 15 54 61 . 71 . . 7 10 22 43 30 88 50 181 52 Core Hits 332 | 6 28 41 . 21 . . 4 4 26 16 10 30 31 91 24 Critical Kills 12 | . . . . 1 . . . . . . . . 8 1 2 Critical Parts Destroyed 9 | . . 1 . 3 . . . . . . . . 3 . 2 Critical Strikes 46 | . 1 1 . 7 . . . . . 1 1 1 15 15 4 Burn 4 | . . . . 3 . . . . . . 1 . . . . Meltdown 3 | . . . . . . . . . . . . . . 1 2 Destroy 20 | . . 1 . 4 . . . . . 1 . 1 11 . 2 Blast 7 | . 1 . . . . . . . . . . . . 6 . Corrupt 4 | . . . . . . . . . . . . . . 4 . Impale 8 | . . . . . . . . . . . . . 4 4 . Melee Attacks 80 | . . . . . . . . . . . . . 29 47 4 Impact . | . . . . . . . . . . . . . . . . Slashing 8 | . . . . . . . . . . . . . . 7 1 Piercing 72 | . . . . . . . . . . . . . 29 40 3 Sneak Attacks 11 | . . . . . . . . . . . . . 2 9 . Combat Hostiles . | . . . . . . . . . . . . . . . . Follow-up Attacks 7 | . . . . . . . . . . . . . 2 4 1 Damage Inflicted 23799 | 188 952 1534 . 1216 . . 156 213 1183 1131 519 2105 1437 9639 3526 Guns 8328 | 188 576 970 . 1216 . . 131 203 270 1131 519 1612 579 652 281 Cannons 9412 | . 213 . . . . . . . . . . 288 . 6729 2182 Explosions 3198 | . 160 507 . . . . . . 913 . . 191 . 503 924 Melee 2744 | . . . . . . . . . . . . . 856 1755 133 Ramming 117 | . 3 57 . . . . 25 10 . . . 14 2 . 6 Kinetic 7024 | . 344 286 . 985 . . 131 203 270 1131 . 1542 177 1955 . Thermal 7352 | 188 26 190 . 231 . . . . . . 519 308 347 3169 2374 Explosive 2192 | . 134 201 . . . . . . 913 . . 191 . 341 412 Electromagnetic 4370 | . 445 800 . . . . . . . . . 50 55 2419 601 Impact . | . . . . . . . . . . . . . . . . Slashing 179 | . . . . . . . . . . . . . . 135 44 Piercing 2565 | . . . . . . . . . . . . . 856 1620 89 Highest Corruption 22 | . 1 2 5 . . . . 1 7 14 14 14 5 22 2 Average Corruption 9 | . 1 1 2 . . . . 1 6 12 14 14 4 15 2 Corruption Purged . | . . . . . . . . . . . . . . . . Corruption Blocked . | . . . . . . . . . . . . . . . . Effects 270 | . 8 12 2 . . . . . 32 31 20 58 8 97 2 Message Errors 60 | . . 4 . . . . . . 9 8 5 14 1 19 . Matter Fused 54 | . 4 2 2 . . . . . 8 6 5 4 . 22 1 Heat Flow Errors 30 | . . 1 . . . . . . 4 4 4 4 2 11 . Energy Discharges 25 | . 3 2 . . . . . . 1 3 . 5 1 10 . Parts Rejected 4 | . . . . . . . . . . . . 2 . 2 . Parts Fused 6 | . . . . . . . . . 1 . . . 1 4 . Data Loss (minor) 32 | . 1 1 . . . . . . 1 3 4 12 1 9 . Data Loss (major) 22 | . . 1 . . . . . . 7 3 1 6 . 4 . Misfires 9 | . . 1 . . . . . . 1 . 1 1 2 3 . Alerts 5 | . . . . . . . . . . 1 . 1 . 2 1 Misdirections 4 | . . . . . . . . . . . . 1 . 3 . Weapon Failures 19 | . . . . . . . . . . 3 . 8 . 8 . Overload Shots 7 | . . . . . . . . . . . . . . 5 2 Overflow Damage 873 | . . 31 . . . . . . 18 . . 25 53 713 33 Projectiles 380 | . . . . . . . . . . . . 4 . 343 33 Explosions 80 | . . 31 . . . . . . 18 . . 21 . 10 . Melee 413 | . . . . . . . . . . . . . 53 360 . Knockbacks 28 | . 4 2 . . . . . . . . . 2 . 20 . Impact 3 | . 1 2 . . . . . . . . . . . . . Kinetic 24 | . 3 . . . . . . . . . . 2 . 19 . Secondary 1 | . . . . . . . . . . . . . . 1 . Self-Inflicted Damage 364 | . 24 85 . . . . . . 117 . . 40 1 94 3 Shots 11 | . 1 4 . . . . . . 3 . . 1 . 2 . Rammed 18 | . 2 7 . . . . 4 1 . . . 2 1 . 1 Targets Rammed 19 | . 2 7 . . . . 5 1 . . . 2 1 . 1 Kicked . | . . . . . . . . . . . . . . . . Crushed 1 | . . . . . . . 1 . . . . . . . . Highest Temperature 563 | 90 321 166 . 311 . . 42 204 258 196 168 228 126 468 563 Average Temperature 92 | 37 76 27 . 87 . . 16 74 113 55 81 87 16 116 155 Received Heat Transfer 5040 | . 159 240 . 144 . . 18 . 169 117 . 495 126 1912 1660 Effects 11 | . 1 . . . . . . . . . . . . 5 5 Shutdowns 3 | . . . . . . . . . . . . . . 2 1 Energy Bleed 4 | . 1 . . . . . . . . . . . . 2 1 Interference 3 | . . . . . . . . . . . . . . 1 2 Damage (minor) 1 | . . . . . . . . . . . . . . . 1 Siege Activations . | . . . . . . . . . . . . . . . . Robots Corrupted 7 | . . . . . . . . . . . . . . 5 2 Combat Hostiles 7 | . . . . . . . . . . . . . . 5 2 Parts Fried 28 | . 4 1 . . . . . . . . . . . 21 2 Impact Corruptions . | . . . . . . . . . . . . . . . . Robots Melted 3 | . . . . . . . . . . . . . . 1 2 Combat Hostiles 3 | . . . . . . . . . . . . . . 1 2 Parts Melted 19 | 2 . . . . . . 3 3 . . . 1 1 6 3 Heat Transferred 8155 | 555 50 250 . 666 . . . . . . 1221 518 444 2332 2119 Parts Sabotaged . | . . . . . . . . . . . . . . . . Parts Stolen . | . . . . . . . . . . . . . . . . Parts Stripped . | . . . . . . . . . . . . . . . . Power Chain Reactions 9 | . 1 4 . . . . . . . . . . . 1 3 Alert | -11 -10 -9 -9 -8 -7 -6 -5 -4 -4 -4 -4 -3 -3 -3 -2 ------- Run | Yrd Mat Mat Min Mat Fac Fac Fac Fac Upp Upp Zhi Pro Res Tes Res Peak Influence 907 | 25 224 399 144 208 94 60 79 82 . . . . 452 907 657 Initial 510 | . 16 74 144 55 94 . 29 . . . . . 327 61 510 Average 232 | 9 78 180 144 120 61 11 44 39 . . . . 227 562 547 Maximum Alert Level 3 | . 1 1 . 1 . . . . . . . . 2 3 2 Low Security (%) 61 | 100 91 59 100 97 100 100 100 100 . . . . 49 6 . Level 1 14 | . 8 40 . 2 . . . . . . . . 40 11 . Level 2 18 | . . . . . . . . . . . . . 9 54 100 Level 3 5 | . . . . . . . . . . . . . . 27 . Level 4 . | . . . . . . . . . . . . . . . . Level 5 . | . . . . . . . . . . . . . . . . High Security . | . . . . . . . . . . . . . . . . Max Security . | . . . . . . . . . . . . . . . . Squads Dispatched 46 | . 3 5 . 2 1 5 2 3 . . . 1 1 15 8 Investigation 15 | . 3 4 . 1 1 1 . . . . . . . 3 2 Extermination 8 | . . . . . . 1 . 1 . . . . 1 3 2 Reinforcement 13 | . . 1 . 1 . . 1 2 . . . . . 7 1 Assault 3 | . . . . . . . . . . . . 1 . 2 . Garrison 7 | . . . . . . 3 1 . . . . . . . 3 Intercept . | . . . . . . . . . . . . . . . . Searches Triggered 1 | . . . . . . . . . . . . . 1 . . Construction Impeded 1 | . . . . . . . . . . . . . . 1 . Haulers Reinforced . | . . . . . . . . . . . . . . . . Active Scanning Responses . | . . . . . . . . . . . . . . . . Cargo Convoy Interrupts . | . . . . . . . . . . . . . . . . Stealth | -11 -10 -9 -9 -8 -7 -6 -5 -4 -4 -4 -4 -3 -3 -3 -2 --------- Run | Yrd Mat Mat Min Mat Fac Fac Fac Fac Upp Upp Zhi Pro Res Tes Res Distress Signals 20 | . 1 4 . 4 1 . . 1 . . . . 3 4 2 Communications Jammed . | . . . . . . . . . . . . . . . . Distress Signals . | . . . . . . . . . . . . . . . . Times Spotted 265 | . 17 27 . 10 10 8 12 12 7 5 . 30 18 70 39 Peak Tracking Total 14 | . 3 4 . 3 5 4 5 6 7 5 . 14 4 7 12 Tactical Retreats 22 | . 1 2 . 1 . 1 . 1 . . . 3 2 6 5 Traps | -11 -10 -9 -9 -8 -7 -6 -5 -4 -4 -4 -4 -3 -3 -3 -2 ------- Run | Yrd Mat Mat Min Mat Fac Fac Fac Fac Upp Upp Zhi Pro Res Tes Res Traps Triggered 12 | . 3 4 . 1 . . . . . . . . 1 3 . Indirectly . | . . . . . . . . . . . . . . . . Trap Hack Attempts . | . . . . . . . . . . . . . . . . Triggered . | . . . . . . . . . . . . . . . . Disarmed . | . . . . . . . . . . . . . . . . Reprogrammed . | . . . . . . . . . . . . . . . . Reused . | . . . . . . . . . . . . . . . . Traps Extracted . | . . . . . . . . . . . . . . . . Installed . | . . . . . . . . . . . . . . . . Triggered 2 | . . . . . . . . . 2 . . . . . . Machines | -11 -10 -9 -9 -8 -7 -6 -5 -4 -4 -4 -4 -3 -3 -3 -2 ---------- Run | Yrd Mat Mat Min Mat Fac Fac Fac Fac Upp Upp Zhi Pro Res Tes Res Machines Disabled 25 | . 2 2 . 4 . . . 1 . . . . . 14 2 Max in Single Turn 3 | . 1 1 . 1 . . . 1 . . . . . 3 1 Garrison Access 1 | . . . . . . . . . . . . . . 1 . Machines Repaired . | . . . . . . . . . . . . . . . . Machines Dismantled . | . . . . . . . . . . . . . . . . Machines Sabotaged . | . . . . . . . . . . . . . . . . Overloaded Fab Kills . | . . . . . . . . . . . . . . . . Hacking | -11 -10 -9 -9 -8 -7 -6 -5 -4 -4 -4 -4 -3 -3 -3 -2 --------- Run | Yrd Mat Mat Min Mat Fac Fac Fac Fac Upp Upp Zhi Pro Res Tes Res Machines Accessed 46 | . 10 5 . 3 . 1 1 . 2 3 9 . 2 7 3 Terminals 25 | . 7 3 . 3 . 1 1 . . . . . 2 5 3 Fabricators . | . . . . . . . . . . . . . . . . Repair Stations 4 | . 1 2 . . . . . . . . . . . 1 . Recycling Units 2 | . 2 . . . . . . . . . . . . . . Scanalyzers . | . . . . . . . . . . . . . . . . Garrison Access 1 | . . . . . . . . . . . . . . 1 . Total Hacks 172 | . 43 18 . 19 . 6 3 . 5 6 48 . 3 15 6 Successful 113 | . 23 12 . 9 . 3 1 . 5 6 48 . 1 4 1 Failed 59 | . 20 6 . 10 . 3 2 . . . . . 2 11 5 Catastrophic 10 | . 3 . . 1 . 1 . . . . . . . 3 2 Database Lockouts . | . . . . . . . . . . . . . . . . Manual 41 | . 20 7 . 9 . 3 . . . . . . . . 2 Terminals 87 | . 29 10 . 19 . 6 3 . . . . . 3 11 6 Fabricators . | . . . . . . . . . . . . . . . . Repair Stations 22 | . 11 8 . . . . . . . . . . . 3 . Recycling Units 3 | . 3 . . . . . . . . . . . . . . Scanalyzers . | . . . . . . . . . . . . . . . . Garrison Access 1 | . . . . . . . . . . . . . . 1 . Terminal Hacks 77 | . 5 3 . 4 . 2 1 . 5 6 48 . 1 2 . Record 44 | . . . . . . . . . 4 4 36 . . . . Part Schematic 5 | . . . . . . . . . . . 4 . . 1 . Robot Analysis 7 | . 2 . . . . 1 . . . . 4 . . . . Prototype ID Bank 5 | . 1 . . . . . . . . . 4 . . . . Open Door 4 | . . . . . . . . . 1 2 . . . 1 . Open DSF 1 | . . . . . . . . . . . . . 1 . . Level Access Points 1 | . . . . 1 . . . . . . . . . . . Branch Access Points 1 | . . . . 1 . . . . . . . . . . . Terminal Index 1 | . . . . . . . 1 . . . . . . . . Alert Level 1 | . 1 . . . . . . . . . . . . . . Locate Traps 1 | . . 1 . . . . . . . . . . . . . Recall Investigation 1 | . . . . 1 . . . . . . . . . . . Hauler Manifests 1 | . 1 . . . . . . . . . . . . . . Zone Layout 4 | . . 2 . 1 . 1 . . . . . . . . . Fabricator Hacks . | . . . . . . . . . . . . . . . . Repair Station Hacks 14 | . 8 5 . . . . . . . . . . . 1 . Scan Component 8 | . 4 3 . . . . . . . . . . . 1 . Repair 6 | . 4 2 . . . . . . . . . . . . . Recycling Unit Hacks . | . . . . . . . . . . . . . . . . Scanalyzer . | . . . . . . . . . . . . . . . . Garrison Access Hacks 1 | . . . . . . . . . . . . . . 1 . Seal Access 1 | . . . . . . . . . . . . . . 1 . Unauthorized Hacks 21 | . 10 4 . 5 . 1 . . . . . . . . 1 Terminals 18 | . 7 4 . 5 . 1 . . . . . . . . 1 Track 3 | . 2 . . 1 . . . . . . . . . . . Assimilate 1 | . 1 . . . . . . . . . . . . . . Botnet 11 | . 3 3 . 3 . 1 . . . . . . . . 1 Operators 3 | . 1 1 . 1 . . . . . . . . . . . Fabricators . | . . . . . . . . . . . . . . . . Repair Stations . | . . . . . . . . . . . . . . . . Recycling Units 3 | . 3 . . . . . . . . . . . . . . Reject 1 | . 1 . . . . . . . . . . . . . . Recyclers 1 | . 1 . . . . . . . . . . . . . . Tunnel 1 | . 1 . . . . . . . . . . . . . . Scanalyzers . | . . . . . . . . . . . . . . . . Garrison Access . | . . . . . . . . . . . . . . . . Data Cores Recovered . | . . . . . . . . . . . . . . . . Used . | . . . . . . . . . . . . . . . . Hacking Detections 29 | . 9 5 . 3 . 1 1 . . . . . 2 5 3 Full Trace Events 17 | . 6 4 . 1 . 1 . . . . . . . 3 2 Feedback Events 2 | . 1 1 . . . . . . . . . . . . . Corruption 2 | . 1 1 . . . . . . . . . . . . . Feedback Blocked . | . . . . . . . . . . . . . . . . Robot Schematics Acquired 5 | . . . . . . . . . . . . . . 5 . Robots Built . | . . . . . . . . . . . . . . . . Authchips . | . . . . . . . . . . . . . . . . Time . | . . . . . . . . . . . . . . . . Total Robot Build Rating . | . . . . . . . . . . . . . . . . Part Schematics Acquired 12 | . . . . . . . . . . . 4 . . 8 . Parts Built . | . . . . . . . . . . . . . . . . Authchips . | . . . . . . . . . . . . . . . . Time . | . . . . . . . . . . . . . . . . Total Part Build Rating . | . . . . . . . . . . . . . . . . Parts Repaired 6 | . 4 2 . . . . . . . . . . . . . Time 168 | . 104 64 . . . . . . . . . . . . . Parts Recycled . | . . . . . . . . . . . . . . . . Recycled Matter . | . . . . . . . . . . . . . . . . Retrieved Matter . | . . . . . . . . . . . . . . . . Retrieved Components . | . . . . . . . . . . . . . . . . Parts Scanalyzed . | . . . . . . . . . . . . . . . . Part Schematics Acquired . | . . . . . . . . . . . . . . . . Parts Damaged . | . . . . . . . . . . . . . . . . Bothacking | -11 -10 -9 -9 -8 -7 -6 -5 -4 -4 -4 -4 -3 -3 -3 -2 ------------ Run | Yrd Mat Mat Min Mat Fac Fac Fac Fac Upp Upp Zhi Pro Res Tes Res Used RIF Installer . | . . . . . . . . . . . . . . . . Robots Hacked 2 | . . . . . . . . . . . . . . 1 1 Non-combat . | . . . . . . . . . . . . . . . . Combat 1 | . . . . . . . . . . . . . . 1 . Robot Hacks Applied 1 | . . . . . . . . . . . . . . 1 . parse_system 1 | . . . . . . . . . . . . . . 1 . Manual 1 | . . . . . . . . . . . . . . . 1 Relay Couplers Released . | . . . . . . . . . . . . . . . . Fabnet Peak Effective % . | . . . . . . . . . . . . . . . . Robots Rewired . | . . . . . . . . . . . . . . . . Allies Hacked . | . . . . . . . . . . . . . . . . Hacks Repelled . | . . . . . . . . . . . . . . . . Allies | -11 -10 -9 -9 -8 -7 -6 -5 -4 -4 -4 -4 -3 -3 -3 -2 -------- Run | Yrd Mat Mat Min Mat Fac Fac Fac Fac Upp Upp Zhi Pro Res Tes Res Total Allies 1 | . . . . . . . . . . . . . . . 1 Largest Group 1 | . . . . . . . . . . . . . . . 1 Highest-Rated Group 148 | . . . . . . . . . . . . . . . 148 Highest-Rated Ally 148 | . . . . . . . . . . . . . . . 148 Total Orders . | . . . . . . . . . . . . . . . . Ally Attacks 13 | . . . . . . . . . . . . . . . 13 Total Damage 434 | . . . . . . . . . . . . . . . 434 Kills 1 | . . . . . . . . . . . . . . . 1 Allies Corrupted . | . . . . . . . . . . . . . . . . Allies Melted . | . . . . . . . . . . . . . . . . Intel | -11 -10 -9 -9 -8 -7 -6 -5 -4 -4 -4 -4 -3 -3 -3 -2 ------- Run | Yrd Mat Mat Min Mat Fac Fac Fac Fac Upp Upp Zhi Pro Res Tes Res Robot Analysis Total 7 | . 2 . . . . 1 . . . . 4 . . . . Derelict Logs Recovered 2 | . . . . . . . . . 2 . . . . . . Drone Launches . | . . . . . . . . . . . . . . . . Drone Recoveries . | . . . . . . . . . . . . . . . . Exploration | -11 -10 -9 -9 -8 -7 -6 -5 -4 -4 -4 -4 -3 -3 -3 -2 ------------- Run | Yrd Mat Mat Min Mat Fac Fac Fac Fac Upp Upp Zhi Pro Res Tes Res Turns Passed 14632 | 162 2607 1515 117 517 609 520 573 288 1005 770 516 1281 1167 2207 778 Spaces Moved 7499 | 70 1237 735 73 233 353 284 283 144 597 440 266 554 915 929 386 Core 388 | 4 . . . . . . . . . . . 115 115 2 152 Treads 5421 | 66 1237 735 73 233 353 284 283 144 597 440 266 439 4 95 172 Legs . | . . . . . . . . . . . . . . . . Wheels 1574 | . . . . . . . . . . . . . 680 832 62 Hover 116 | . . . . . . . . . . . . . 116 . . Flight . | . . . . . . . . . . . . . . . . Fastest Speed 50 | 50 160 160 160 155 156 157 157 157 159 160 160 50 50 95 50 Average Speed 150 | 153 160 160 160 156 156 157 157 158 159 160 160 150 96 159 151 Slowest Speed 1850 | 160 240 160 160 240 156 157 157 159 160 161 160 320 240 1850 1200 Overloaded Moves . | . . . . . . . . . . . . . . . . Propulsion Burnouts . | . . . . . . . . . . . . . . . . Robots Hopped . | . . . . . . . . . . . . . . . . Cave-ins Triggered . | . . . . . . . . . . . . . . . . Teleports 1 | . . . . . . . . . . . 1 . . . . Exploration Rate (%) 36 | 5 94 50 23 18 9 10 11 7 85 49 62 64 20 66 16 Regions Visited 15 Branch Regions 6 Pre-discovered Areas 6 | . 1 . . . . . . . 2 . 3 . . . . Known Exits Taken 2 | . . . . 1 . . . . . . . . 1 . . Unknown Exits Taken 13 | 1 1 1 1 . 1 1 1 1 1 1 1 1 . 1 . Scrap Searched 6 | . . . . . . . . . 3 2 . 1 . . . Spaces Dug 11 | . 6 . . . . . . 1 . . . . . 1 3 Terrain Destroyed 289 | . 36 48 . . . . . 1 50 2 . 18 . 75 59 Melee 1 | . . . . . . . . . . . . . . 1 . Projectile 102 | . . . . . . . . 1 12 2 . 8 . 57 22 AOE 186 | . 36 48 . . . . . . 38 . . 10 . 17 37 Terrain Rammed . | . . . . . . . . . . . . . . . . Walls Destroyed . | . . . . . . . . . . . . . . . . Machines Disabled . | . . . . . . . . . . . . . . . . Actions | -11 -10 -9 -9 -8 -7 -6 -5 -4 -4 -4 -4 -3 -3 -3 -2 --------- Run | Yrd Mat Mat Min Mat Fac Fac Fac Fac Upp Upp Zhi Pro Res Tes Res Total 9851 | 104 1760 987 73 324 409 358 404 193 624 480 326 902 1096 1312 499 Wait 1029 | . 375 103 . 3 49 62 98 27 . . . 256 35 16 5 Move 7484 | 69 1236 734 72 232 352 283 282 143 596 439 265 553 914 928 386 Hop . | . . . . . . . . . . . . . . . . Pick Up 155 | 9 29 26 . 10 2 4 3 3 5 5 4 6 20 22 7 Fast Attach 133 | 5 9 12 . 5 . . . 1 . 4 10 6 32 46 3 Attach 85 | 2 5 4 . 3 2 2 3 2 3 2 . 15 2 17 23 Detach 37 | . . 2 . . . . . . . . . 3 4 20 8 Swap 164 | 1 26 27 1 18 4 5 6 3 7 7 2 10 11 25 11 Drop 165 | . 21 24 . 15 . 2 3 6 3 8 12 5 19 36 11 Fire 504 | 18 57 48 . 38 . . 4 7 10 15 33 46 24 163 41 Melee 68 | . . . . . . . . . . . . . 26 39 3 Ram 4 | . . . . . . . . . . . . 2 1 . 1 Kick . | . . . . . . . . . . . . . . . . Crush 15 | . 2 7 . . . . 5 1 . . . . . . . Escape Stasis 8 | . . . . . . . . . . . . . 8 . . Rewire . | . . . . . . . . . . . . . . . . Trap . | . . . . . . . . . . . . . . . . Miscellaneous . | . . . . . . . . . . . . . . . . Route ------- -11/Scrapyard -10/Materials (discovered 6 exits: *Mat x3 / [*Min x2] / [*Sub]) -9/Materials (discovered 2 exits: *Mat / [*Min]) -9/Mines -8/Materials (discovered 5 exits: *Fac x3 / Sto x2) -7/Factory -6/Factory -5/Factory -4/Factory -4/Upper Caves -4/Upper Caves -4/Zhirov -3/Proximity Caves -3/Research -3/Testing -2/Research History --------- Turn | Location | Event 8 | -11/Scrapyard | Discovered new exit (range 15) 163 | -11/Scrapyard | Entered Materials 340 | -10/Materials | Build established: Mutant 867 | -10/Materials | Discovered new exit (range 15) 1086 | -10/Materials | Discovered new exit (range 8) 1091 | -10/Materials | Discovered new exit (range 16) 1615 | -10/Materials | Discovered new exit (range 12) 1783 | -10/Materials | Discovered new exit (range 3) 2159 | -10/Materials | Discovered new exit (range 8) 2632 | -10/Materials | Repaired Lgt. Treads 2664 | -10/Materials | Repaired Lgt. Treads 2691 | -10/Materials | Repaired Seismic Detector 2719 | -10/Materials | Repaired Lgt. Treads 2770 | -10/Materials | Entered another Materials area 2770 | -9/Materials | Evolved 2 slots: Propulsion x1, Utility x1 3063 | -9/Materials | Build established: Scavenger-Mutant 3984 | -9/Materials | Repaired Imp. Terrain Scanner 4013 | -9/Materials | Repaired Lgt. Treads 4025 | -9/Materials | Discovered new exit (range 15) 4223 | -9/Materials | Discovered new exit (range 15) 4285 | -9/Materials | Entered Mines 4311 | -9/Mines | Build established: Mutant 4385 | -9/Mines | Discovered new exit (range 8) 4402 | -9/Mines | Entered Materials 4402 | -8/Materials | Evolved 2 slots: Utility x1, Weapon x1 4678 | -8/Materials | Discovered new exit (range 5) 4808 | -8/Materials | Identified exit to Factory 4811 | -8/Materials | Build established: Gunner 4815 | -8/Materials | Identified exit to Storage 4879 | -8/Materials | Met 7R-MNS 4919 | -8/Materials | Entered Factory 4919 | -7/Factory | Evolved 2 slots: Propulsion x1, Utility x1 4920 | -7/Factory | Caught up to 7R-MNS 5207 | -7/Factory | Build established: Scavenger-Gunner 5467 | -7/Factory | Discovered new exit (range 15) 5528 | -7/Factory | Entered another Factory area 5528 | -6/Factory | Evolved 2 slots: Propulsion x1, Utility x1 5529 | -6/Factory | Caught up to 7R-MNS 5821 | -6/Factory | Build established: Scavenger-Skirmisher 6025 | -6/Factory | Discovered new exit (range 15) 6048 | -6/Factory | Entered another Factory area 6048 | -5/Factory | Evolved 2 slots: Power x1, Utility x1 6049 | -5/Factory | Caught up to 7R-MNS 6214 | -5/Factory | Garrison activated, responded to threat 6510 | -5/Factory | Build established: Scavenger-Gunner 6594 | -5/Factory | Discovered new exit (range 10) 6621 | -5/Factory | Entered another Factory area 6621 | -4/Factory | Evolved 2 slots: Propulsion x1, Weapon x1 6622 | -4/Factory | Caught up to 7R-MNS 6882 | -4/Factory | Discovered new exit (range 12) 6897 | -4/Factory | 7R-MNS successfully reached the Upper Caves 6909 | -4/Factory | Entered Upper Caves 6911 | -4/Upper Caves | Attracted the attention of an 0b10 checkpoint 6958 | -4/Upper Caves | Lost 3 parts (2u1w) 6969 | -4/Upper Caves | Destroyed 7 combat bots 7198 | -4/Upper Caves | Build established: Scavenger-Tank 7483 | -4/Upper Caves | Learned Armory security intel 7523 | -4/Upper Caves | Learned Research stockpile data 7526 | -4/Upper Caves | Encountered a Warlord checkpoint 7873 | -4/Upper Caves | Discovered new exit (range 15) 7914 | -4/Upper Caves | Entered another Upper Caves area 8108 | -4/Upper Caves | System corruption reached 10% 8150 | -4/Upper Caves | Lost 3 parts (2n1u) 8166 | -4/Upper Caves | Learned Armory emergency access door positions 8500 | -4/Upper Caves | Build established: Scavenger-Skirmisher 8655 | -4/Upper Caves | Discovered new exit (range 13) 8684 | -4/Upper Caves | Entered Zhirov 8684 | -4/Zhirov | Discovered new exit (range 3) 8744 | -4/Zhirov | Learned location of Quarantine (-2) 8744 | -4/Zhirov | Learned location of Testing (-3) 8744 | -4/Zhirov | Learned location of Command (-1) 8811 | -4/Zhirov | Found Alien Artifact 8811 | -4/Zhirov | Identified Integrated Dissipator 8811 | -4/Zhirov | Installed Integrated Dissipator, increased core heat dissipation (+20) 8855 | -4/Zhirov | Found Alien Artifact 8855 | -4/Zhirov | Identified Transdimensional Reconstructor 8855 | -4/Zhirov | Warped through subspace 9200 | -4/Zhirov | Entered Proximity Caves 9248 | -3/Proximity Caves | Lost 3 parts (1p1n1u) 9285 | -3/Proximity Caves | Spotter reported a threat 9285 | -3/Proximity Caves | Spotter reported a threat 9575 | -3/Proximity Caves | Received a Behemoth hack from an annoying Tinkerer 10149 | -3/Proximity Caves | Spotted B-86 Titan 10203 | -3/Proximity Caves | Destroyed B-86 Titan 10287 | -3/Proximity Caves | Lost 17 parts (2p7n1u7w) 10423 | -3/Proximity Caves | Core integrity fell below 50% 10438 | -3/Proximity Caves | Attracted the attention of an 0b10 checkpoint 10473 | -3/Proximity Caves | Attracted the attention of an 0b10 outpost 10476 | -3/Proximity Caves | Discovered new exit (range 9) 10479 | -3/Proximity Caves | Lost 9 parts (1p1n2u5w) 10481 | -3/Proximity Caves | Entered Research 10481 | -3/Research | Evolved 2 slots: Utility x2 10606 | -3/Research | Discovered new exit (range 6) 10731 | -3/Research | Search patrols dispatched 11138 | -3/Research | Build established: Scavenger-Assassin 11218 | -3/Research | Lost 6 parts (4n2u) 11635 | -3/Research | Identified exit to Testing 11648 | -3/Research | Entered Testing 11666 | -3/Testing | Scanned by Researcher 11683 | -3/Testing | Found Prototype Protection 11683 | -3/Testing | Identified Hvy. Regenerative Plating 11688 | -3/Testing | Found Prototype Protection 11688 | -3/Testing | Identified Med. Regenerative Plating 11692 | -3/Testing | Found Prototype Protection 11692 | -3/Testing | Identified SHELL Armor 11703 | -3/Testing | Found Hvy. Regenerative Plating 11976 | -3/Testing | Build established: Scavenger-Mutant 12033 | -3/Testing | Found Prototype Energy Cannon 12033 | -3/Testing | Identified Disintegrator 12174 | -3/Testing | System corruption reached 10% 12254 | -3/Testing | Destroyed 7 combat bots 12281 | -3/Testing | Lost 12 parts (2p6n4u) 12385 | -3/Testing | Lost 10 parts (2p3u5w) 12530 | -3/Testing | Found Prototype Energy Cannon 12531 | -3/Testing | Identified Cld. Nova Cannon 12584 | -3/Testing | Found Prototype Device 12584 | -3/Testing | Identified Exp. Hardlight Generator 12645 | -3/Testing | Build established: Scavenger-Gunner 12648 | -3/Testing | First assault squad dispatched 12740 | -3/Testing | Core integrity fell below 50% 12805 | -3/Testing | Lost 5 parts (3n2w) 13062 | -3/Testing | Build established: Scavenger-Mutant 13427 | -3/Testing | Found Prototype Energy Cannon 13428 | -3/Testing | Identified Null Cannon 13815 | -3/Testing | Discovered new exit (range 15) 13855 | -3/Testing | Entered Research 13855 | -2/Research | Evolved 2 slots: Utility x2 14249 | -2/Research | Build established: Scavenger-Skirmisher 14255 | -2/Research | Spotted B-90 Cyclops 14341 | -2/Research | Lost 5 parts (1p2n1u1w) 14370 | -2/Research | Befriended a Behemoth using the annoying Tinkerer's hack 14391 | -2/Research | Lost 4 parts (2n1u1w) 14409 | -2/Research | Garrison activated, responded to threat 14487 | -2/Research | Core integrity fell below 50% 14548 | -2/Research | Core integrity fell below 20% 14550 | -2/Research | Lost 22 parts (5p4n7u6w) 14633 | -2/Research | Destroyed by H-88 Terminator with KE Penetrator Last Messages --------------- 14564_ O-24 Administrator: "IFF HANDSHAKE FAILED. SECURING TERMINAL." 14575_ Acquired Centrium Wheel. 14578_ ALERT: Hostiles spotted, dispatching reinforcements to Terminal R010. 14580_ Connecting with Terminal... 14580_ ALERT: Suspicious activity at Terminal R017. Dispatching Investigation squad. 14597_ Connecting with Terminal... 14597_ ALERT: Suspicious activity at Terminal R020. Dispatching Investigation squad. 14605_ ALERT: Rogue bot located, Programmers report to Research Zone 3R. 14608_ Penetrated by Slug. 14608_ K-01 Serf destroyed. 14609_ Dropped Centrium Wheel. 14610_ Penetrated by Slug. 14610_ Slammed into O-24 Administrator. 14613_ Slug penetrates Wall. 14633_ Penetrated by Slug. Map ----- +----------------------------------------------------+ | ???????????????????# #??????????????????????? | | ???????????????????# #??????????????????????? | | ???????????????????# #??????????????????????? | | ??????????########## #??????????????????????? | | ??????????# # #??????????????????????? | | ??????????# # = #????????????????????? | | ????????### # #?????????????????? | | ????????#" # #????????????????? | | ????????#"" """ # #?####???????????? | | ????????#"" """" #? ??#T"#???????????? | | ????????#"" """" ####+##### "########## | | ????????#"" """ # =%* % | | ????????#"T + = ! " " | | ????????#"" # "T" | | ????????#"" # """ | | ????????#"" # #######+################### | | ????????#"" # # p #????????????# | | ????????#" ! # # h #????????????# | | ????????### *! # # """"" #????????????# | | ??????????# * # # ""T"" #????????????# | | ??????????# # # #??##????????# | | ??????????# # # #?? ??????# | | ??????????#######+## # """ # [ ????# | | ??????????# ?# # h"""" # ??# | | ??????????# # # h""""p # # | | ??????????# # # @ """Q # " | | ??????????# + # # / | | ??????????# # # # # | | ??????????# = # ############## " | | ??????????# ?# ?? ##+ | | ??????????#####?# ######????? ## | | ????????????????# #???????? #? ???! ?## | | ???????????????## #?????? #??? ! ??# | | ???????????????# ##### #??########???# | | ???????????????# + ! #?????????????# | | ???????????????# ##+##### # #????????####### | | ???????????????##### ??# #?? #????????# | | ???????????????????# # #???? #????????# ! | | ???????????????????# *# #??????????????# | | ???????????????????# # #??????????????# | | ???????????????????# # #??????????????# """ | | ???????????????????# # #??????????????# """ | | ?????????????????########## #??????????????# """ | | ?????????????????# ### ###????????????# | | ?????????????????# # #????????????# | | ?????????????????# !# #######???########+# | | ?????????????????# + * #???# | | ?????????????????# # ##### #???# | | ?????????????????# # #???# ##### | | ?????????????????######### ##???# | +----------------------------------------------------+ Best States ------------- Heat Dissipation 126 Energy Generation 45 Energy Capacity 690 Matter Stores 772 Matter Capacity 850 Sight Range 20 Robot Scan Range 18 Terrain Scan Range 16 Terrain Scan Density 335 Base Temperature (-) 200 Armor Coverage 2100 Propulsion Shielding 90 Phase Shifting 5 Evasion (%) 50 Targeting Accuracy 6 Target Analysis 12 Recoil Reduction 6 Defensive Hacking 10 Item Schematics ----------------- Assault Drone Bay | -4/Zhirov | Free Exp. Heat Sink | -4/Zhirov | Free Exp. Optical Array | -4/Zhirov | Free Imp. Arc Thrower | -4/Zhirov | Free Adv. Kinecellerator | -3/Testing | Archive Cld. Impulse Thruster | -3/Testing | Archive Exp. Thermal Shield | -3/Testing | Archive Lgt. Regenerative Plating | -3/Testing | Hacked Plasma Sword | -3/Testing | Archive Gravity Neutralizer | -3/Testing | Archive Ionic Axe | -3/Testing | Archive Hvy. Dispersion Rifle | -3/Testing | Archive Robot Schematics ------------------ A-27 Freighter | -3/Testing | Archive R-10 Processor | -3/Testing | Archive S-43 Plague | -3/Testing | Archive A-02 Transporter | -3/Testing | Archive L-61 Swordsman | -3/Testing | Archive Fabricated ------------ Nothing Alien Tech Used ----------------- Integrated Dissipator Transdimensional Reconstructor Achievements -------------- Ooh, Shiny! Woof! Challenges ------------ None Game ------ Seed DiametricAlphaScreen Manual? 0 Play Time 03:33:06 Cumulative 68.6 hours Start 2024.10.11 @ 23:42:59 End 2024.10.12 @ 03:18:36 Sessions 1 Manual Loads 0 Difficulty Rogue Special Mode None Game No. 64 Rogue 64 Adventurer 0 Explorer 0 Win Type - Total 2 Types 2/0/0/0/0/0/0/0/0 Lore% 37 Gallery% 44 Achievement% 40 Wizard Run 0 Options --------- Layout 1 ASCII 0 Keyboard 1 Movement Arrows Keybinds 0 Fullscreen 2 Font 24/Smallcaps Map View 50x35 Zoom Use 0% Tactical HUD 1 Map Filters NONE Filters NONE Steam 1 RUN: 1336decf-0679-4459-bc65-cb9aff7ad34d